Cogmind - Beta 15 @@@ ROGUE MODE // 2025.10.09 @ 14:10:49 Player: Dylbot Result: Destroyed by G-47 Trooper with Particle Gun Performance ------------- Evolutions (2) 1000 Regions Visited (3) 600 Robots Destroyed (33) 165 Value Destroyed (1147) 1147 Prototype IDs (1) 20 Alien Tech Used (0) 0 Bonus (0) 0 TOTAL SCORE: 2932 Bonus ------- None Cogmind --------- Core Integrity 0/550 Matter 223/300 Energy 360/360 System Corruption 0% Temperature Warning (361) Movement Core (1150) Ox22 Location -8/Materials Parts ------- > --- POWER (2) -------- Light Nuclear Core > --- PROPULSION (3) --- Wheel Wheel Compact Wheel > --- UTILITY (3) ------ High-capacity Storage Unit Compact Battery Reactive Plating > --- WEAPON (3) ------- Particle Gun Ion Cannon Enhanced Autogun > --- INVENTORY (20) --- Deuterium Engine Deuterium Engine Deuterium Engine Reactive Plating Reactive Plating Reactive Plating Reactive Plating Ion Cannon Ion Cannon Peak State ------------ > --- POWER ------------ Ion Engine Deuterium Engine > --- PROPULSION ------- Light Treads Light Treads Advanced Treads > --- UTILITY ---------- Large Storage Unit Compact Battery Reactive Plating > --- WEAPON ----------- Particle Gun Ion Cannon Assault Cannon > --- INVENTORY -------- Deuterium Engine Deuterium Engine Deuterium Engine Reactive Plating Reactive Plating Reactive Plating Reactive Plating Ion Cannon Ion Cannon Ion Cannon [Rating: 27] Favorites ----------- Power Ion Engine Engine Ion Engine Power Core Light Nuclear Core Propulsion Light Treads Treads Light Treads Leg Aluminum Leg Wheel Wheel Utility Large Storage Unit Device Improved Heat Sink Storage Large Storage Unit Protection Light Armor Plating Weapon Heavy Assault Rifle Energy Gun Beam Rifle Energy Cannon Ion Cannon Ballistic Gun Heavy Assault Rifle Ballistic Cannon Assault Cannon Launcher Grenade Launcher Build | -11 -10 -9 -8 ------- Run | Yrd Mat Mat Mat Slots Evolved 4 | . . 2 2 Power 1 | . . 1 . Propulsion 1 | . . . 1 Utility 1 | . . . 1 Weapon 1 | . . 1 . Parts Attached 40 | 6 2 9 23 Power 7 | 1 . 2 4 Engine 6 | 1 . 2 3 Core 1 | . . . 1 Reactor . | . . . . Propulsion 12 | 2 . 2 8 Treads 4 | . . . 4 Leg 3 | . . 2 1 Wheel 5 | 2 . . 3 Hover . | . . . . Flight . | . . . . Utility 8 | 1 1 2 4 Device 2 | . 1 . 1 Storage 4 | 1 . 1 2 Processor . | . . . . Hackware . | . . . . Protection 2 | . . 1 1 Artifact . | . . . . Weapon 13 | 2 1 3 7 Energy Gun 6 | 2 . 1 3 Energy Cannon 2 | . . . 2 Ballistic Gun 3 | . . 2 1 Ballistic Cannon 1 | . . . 1 Launcher 1 | . 1 . . Special Weapon . | . . . . Impact Weapon . | . . . . Slashing Weapon . | . . . . Piercing Weapon . | . . . . Special Melee Weapon . | . . . . Unidentified Prototypes 1 | . . . 1 Parts Lost 3 | . . 1 2 Power 2 | . . . 2 Propulsion 1 | . . 1 . Utility . | . . . . Weapon . | . . . . Highest Loss Streak 1 | . . 1 1 To Critical Strikes . | . . . . Average Backups 7 | 2 6 3 9 Power . | . 1 . 1 Propulsion 1 | . 4 2 . Utility 2 | . . . 4 Weapon 3 | . 1 1 4 Tool/Special . | . . . . Unused Backups 9 | . . . 9 Power 3 | . . . 3 Propulsion . | . . . . Utility 4 | . . . 4 Weapon 2 | . . . 2 Tool/Special . | . . . . Average Slot Usage (%) 96 | . 88 99 95 Engine 17 | . 14 22 16 Core 1 | . . . 1 Treads 14 | . . . 20 Leg 5 | . . 16 2 Wheel 3 | . 28 5 1 Device 3 | . 3 . 3 Storage 13 | . 14 13 13 Protection 8 | . . 8 9 Energy Gun 13 | . 21 11 13 Energy Cannon 2 | . . . 3 Ballistic Gun 6 | . . 10 6 Ballistic Cannon 1 | . . . 2 Launcher 2 | . 7 10 . Peak Build Rating 27 | 6 9 12 27 Average Rating 18 | 4 7 10 22 On Entrance 6 | . 6 9 12 Naked Turns . | . . . . Heaviest Build 75 | 14 16 43 75 Greatest Support 62 | 20 20 20 62 Greatest Overweight (x) 22 | 3 . 2 22 Average Overweight (x) . | . . 1 . Largest Inventory Capacity 20 | 8 8 15 20 Average Capacity 14 | 7 8 14 15 Most Carried 13 | 6 7 7 13 Average Carried 7 | 2 6 3 9 Final Capacity 20 | 8 8 15 20 Final Carried 9 | 6 6 3 9 Class Distribution -------------------- 43% | Scavenger-Tank 37% | Tank 8% | Mutant 5% | Scavenger-Mutant 4% | Gunner Dominant Class ---------------- Mutant | -10/Materials Tank | -9/Materials Scavenger-Tank | -8/Materials Resources | -11 -10 -9 -8 ----------- Run | Yrd Mat Mat Mat Matter Collected 1146 | 202 54 65 825 Remotely . | . . . . Salvage Created 1423 | . 59 176 1188 Parts 71 | . 6 14 51 Haulers Intercepted 1 | . . . 1 Recyclers Shooed 2 | . . . 2 Parts Field Recycled . | . . . . Retrieved Matter . | . . . . Parts Self-Destructed . | . . . . Prevented . | . . . . Kills | -11 -10 -9 -8 ------- Run | Yrd Mat Mat Mat Combat Hostiles Destroyed 24 | . 2 4 18 Guns 16 | . . 4 12 Cannons 5 | . . . 5 AOE 2 | . 2 . . Classes Destroyed 8 | . 2 2 4 Worker 2 | . . . 2 Builder 3 | . 1 . 2 Hauler 1 | . . . 1 Recycler 1 | . . . 1 Watcher 2 | . . 1 1 Grunt 18 | . 2 2 14 Brawler 1 | . . . 1 Sentry 5 | . . 2 3 Best Kill Streak 6 | . 3 2 6 Combat Bots Only 6 | . 2 2 6 Max Kills in Single Turn 3 | . 3 1 2 Gunslinging . | . . . . Exploded 2 | . 2 . . Melee . | . . . . Uniques/NPCs Destroyed . | . . . . Combat | -11 -10 -9 -8 -------- Run | Yrd Mat Mat Mat Hostile Shots Fired 115 | . 8 14 93 Missed 23 | . 4 4 15 Hits 92 | . 4 10 78 Projectile 92 | . 4 10 78 Critical Strikes 9 | . . 1 8 Damage Taken 1822 | . 56 155 1611 Core 589 | . . 33 556 Absorbed by Shields . | . . . . Ignored by Resistances 31 | . . . 31 Core Remaining (%) 97 | 100 100 91 . Volleys Fired 84 | . 4 12 68 Largest 3 | . 2 3 3 Hottest 162 | . 90 103 162 Shots Fired 209 | . 8 31 170 Gun 151 | . 6 24 121 Cannon 49 | . . . 49 Launcher 9 | . 2 7 . Special . | . . . . Kinetic 75 | . . 12 63 Thermal 99 | . 4 12 83 Explosive 9 | . 2 7 . Electromagnetic 26 | . 2 . 24 Robot Hit Streak 15 | . 4 7 15 Robot Miss Streak 4 | . 1 2 4 Penetration Max . | . . . . Secondary Targets 3 | . . . 3 Max Gunslinging Chain 1 | . . . 1 Shots Hit Robots 116 | . 5 17 94 Core Hits 57 | . 6 10 41 Critical Kills 2 | . . . 2 Critical Parts Destroyed . | . . . . Critical Strikes 6 | . . 2 4 Burn 4 | . . 2 2 Meltdown 1 | . . . 1 Destroy 1 | . . . 1 Melee Attacks . | . . . . Impact . | . . . . Slashing . | . . . . Piercing . | . . . . Sneak Attacks . | . . . . Combat Hostiles . | . . . . Follow-up Attacks . | . . . . Damage Inflicted 2291 | . 182 327 1782 Guns 1368 | . 39 206 1123 Cannons 650 | . . . 650 Explosions 264 | . 143 121 . Melee . | . . . . Ramming 9 | . . . 9 Kinetic 757 | . . 92 665 Thermal 1075 | . 24 114 937 Explosive 264 | . 143 121 . Electromagnetic 186 | . 15 . 171 Impact . | . . . . Slashing . | . . . . Piercing . | . . . . Highest Corruption . | . . . . Average Corruption . | . . . . Corruption Purged . | . . . . Corruption Blocked . | . . . . Overload Shots . | . . . . Overflow Damage 18 | . . . 18 Projectiles 18 | . . . 18 Explosions . | . . . . Melee . | . . . . Knockbacks 5 | . . . 5 Impact . | . . . . Kinetic 5 | . . . 5 Secondary . | . . . . Self-Inflicted Damage 28 | . . 24 4 Shots 1 | . . 1 . Rammed 1 | . . . 1 Targets Rammed 1 | . . . 1 Kicked . | . . . . Crushed . | . . . . Highest Temperature 748 | . 112 188 748 Average Temperature 243 | . 67 62 282 Received Heat Transfer 870 | . 36 69 765 Effects 94 | . . . 94 Shutdowns 23 | . . . 23 Energy Bleed 6 | . . . 6 Interference 16 | . . . 16 Matter Decay 7 | . . . 7 Short Circuit 11 | . . . 11 Damage (minor) 7 | . . . 7 Damage (major) 18 | . . . 18 Damage (core) 6 | . . . 6 Siege Activations . | . . . . Martial Activations . | . . . . Shielding Activations . | . . . . Robots Disrupted . | . . . . Combat Hostiles . | . . . . Robots Corrupted . | . . . . Combat Hostiles . | . . . . Parts Fried . | . . . . Impact Corruptions . | . . . . Robots Melted 1 | . . . 1 Combat Hostiles 1 | . . . 1 Parts Melted 4 | . . 2 2 Heat Transferred 2664 | . 74 481 2109 Parts Sabotaged . | . . . . Parts Stolen . | . . . . Parts Stripped . | . . . . Power Chain Reactions . | . . . . Alert | -11 -10 -9 -8 ------- Run | Yrd Mat Mat Mat Maximum Alert Level 1 | . . . 1 Low Security (%) 86 | 100 100 100 80 Level 1 13 | . . . 19 Level 2 . | . . . . Level 3 . | . . . . Level 4 . | . . . . Level 5 . | . . . . High Security . | . . . . Max Security . | . . . . Peak Influence 250 | . 53 63 250 Initial 17 | . . 17 8 Average 55 | . 22 21 71 Influence Increases 751 | . 63 164 524 Destroy 0b10 Robot/C 480 | . 40 80 360 Destroy 0b10 Robot/NC 45 | . 5 5 35 Destroy Leader 126 | . 10 32 84 Successful Hack 7 | . . . 7 Disable Machine 15 | . . . 15 Destroy Structure 63 | . 8 47 8 Lose Combat Pursuer 15 | . . . 15 Influence Decreases 529 | . 20 186 323 Entered New Map 39 | . . 26 13 Time Decay 460 | . 20 150 290 Lost Part 30 | . . 10 20 Squads Dispatched 4 | . . 1 3 Investigation 1 | . . . 1 Extermination . | . . . . Reinforcement 3 | . . 1 2 Assault . | . . . . Garrison . | . . . . Intercept . | . . . . Searches Triggered . | . . . . Construction Impeded . | . . . . Haulers Reinforced . | . . . . Active Scanning Responses . | . . . . Cargo Convoy Interrupts . | . . . . Stealth | -11 -10 -9 -8 --------- Run | Yrd Mat Mat Mat Distress Signals 2 | . . . 2 Communications Jammed . | . . . . Distress Signals . | . . . . Times Spotted 32 | . 3 5 24 Peak Tracking Total 5 | . 3 2 5 Tactical Retreats 1 | . . . 1 Traps | -11 -10 -9 -8 ------- Run | Yrd Mat Mat Mat Traps Triggered . | . . . . Indirectly . | . . . . Trap Hack Attempts . | . . . . Triggered . | . . . . Disarmed . | . . . . Reprogrammed . | . . . . Reused . | . . . . Traps Extracted . | . . . . Installed . | . . . . Triggered . | . . . . Machines | -11 -10 -9 -8 ---------- Run | Yrd Mat Mat Mat Machines Disabled 1 | . . . 1 Max in Single Turn 1 | . . . 1 Machines Repaired . | . . . . Machines Dismantled . | . . . . Machines Sabotaged . | . . . . Overloaded Fab Kills . | . . . . Hacking | -11 -10 -9 -8 --------- Run | Yrd Mat Mat Mat Machines Accessed 4 | . . 1 3 Terminals 2 | . . 1 1 Fabricators . | . . . . Repair Stations . | . . . . Recycling Units 1 | . . . 1 Scanalyzers 1 | . . . 1 Garrison Access . | . . . . Total Hacks 9 | . . 2 7 Successful 4 | . . 1 3 Failed 5 | . . 1 4 Catastrophic . | . . . . Database Lockouts . | . . . . Manual . | . . . . Terminals 5 | . . 2 3 Fabricators . | . . . . Repair Stations . | . . . . Recycling Units 3 | . . . 3 Scanalyzers 1 | . . . 1 Garrison Access . | . . . . Terminal Hacks 2 | . . 1 1 Record 1 | . . 1 . Recall Investigation 1 | . . . 1 Fabricator Hacks . | . . . . Repair Station Hacks . | . . . . Recycling Unit Hacks 2 | . . . 2 Process 1 | . . . 1 Report Inventory 1 | . . . 1 Scanalyzer . | . . . . Garrison Access Hacks . | . . . . Unauthorized Hacks . | . . . . Terminals . | . . . . Fabricators . | . . . . Repair Stations . | . . . . Recycling Units . | . . . . Scanalyzers . | . . . . Garrison Access . | . . . . Data Cores Recovered . | . . . . Used . | . . . . Hacking Detections 4 | . . 1 3 Full Trace Events 1 | . . . 1 Feedback Events . | . . . . Feedback Blocked . | . . . . Robot Schematics Acquired . | . . . . Robots Built . | . . . . Authchips . | . . . . Time . | . . . . Total Robot Build Rating . | . . . . Part Schematics Acquired . | . . . . Parts Built . | . . . . Authchips . | . . . . Time . | . . . . Total Part Build Rating . | . . . . Parts Repaired . | . . . . Time . | . . . . Parts Recycled . | . . . . Recycled Matter 320 | . . . 320 Retrieved Matter . | . . . . Retrieved Components . | . . . . Parts Scanalyzed . | . . . . Part Schematics Acquired . | . . . . Parts Damaged . | . . . . Bothacking | -11 -10 -9 -8 ------------ Run | Yrd Mat Mat Mat Used RIF Installer . | . . . . Robots Hacked . | . . . . Non-combat . | . . . . Combat . | . . . . Robot Hacks Applied . | . . . . Relay Couplers Released . | . . . . Fabnet Peak Effective % . | . . . . Robots Rewired . | . . . . Allies Hacked . | . . . . Hacks Repelled . | . . . . Allies | -11 -10 -9 -8 -------- Run | Yrd Mat Mat Mat Total Allies . | . . . . Largest Group . | . . . . Highest-Rated Group . | . . . . Highest-Rated Ally . | . . . . Total Orders . | . . . . Ally Attacks . | . . . . Total Damage . | . . . . Kills . | . . . . Allies Corrupted . | . . . . Allies Melted . | . . . . Intel | -11 -10 -9 -8 ------- Run | Yrd Mat Mat Mat Active Infowar (turns) . | . . . . Robot Analysis Total . | . . . . Derelict Logs Recovered . | . . . . Drone Launches . | . . . . Drone Recoveries . | . . . . Exploration | -11 -10 -9 -8 ------------- Run | Yrd Mat Mat Mat Turns Passed 1661 | 63 72 381 1145 Spaces Moved 803 | 46 70 162 525 Core 15 | 14 . . 1 Treads 428 | . . . 428 Legs 140 | . . 104 36 Wheels 220 | 32 70 58 60 Hover . | . . . . Flight . | . . . . Fastest Speed 50 | 50 80 95 125 Average Speed 163 | 98 80 200 169 Slowest Speed 1150 | 200 80 260 1150 Overloaded Moves . | . . . . Propulsion Burnouts . | . . . . Robots Hopped . | . . . . Potential Cave-ins . | . . . . Cave-ins Triggered . | . . . . Exploration Rate (%) 15 | 4 18 23 17 Regions Visited 3 Branch Regions . Pre-discovered Areas . | . . . . Known Exits Taken . | . . . . Unknown Exits Taken 3 | 1 1 1 . Scrap Searched . | . . . . Spaces Dug . | . . . . Terrain Destroyed 77 | . 12 57 8 Melee . | . . . . Projectile 8 | . . . 8 AOE 69 | . 12 57 . Terrain Rammed . | . . . . Walls Destroyed . | . . . . Machines Disabled . | . . . . Actions | -11 -10 -9 -8 --------- Run | Yrd Mat Mat Mat Total 1002 | 63 78 195 666 Wait . | . . . . Move 800 | 45 69 161 525 Hop . | . . . . Pick Up 49 | 12 2 6 29 Fast Attach . | . . . . Attach 38 | 6 2 8 22 Detach . | . . . . Swap 3 | . . 2 1 Drop 27 | . 1 6 20 Fire 84 | . 4 12 68 Melee . | . . . . Ram 1 | . . . 1 Kick . | . . . . Crush . | . . . . Escape Stasis . | . . . . Rewire . | . . . . Trap . | . . . . Miscellaneous . | . . . . Route ------- -11/Scrapyard -10/Materials -9/Materials -8/Materials History --------- Turn | Location | Event 6 | -11/Scrapyard | Discovered new exit (range 15) 64 | -11/Scrapyard | Entered Materials 131 | -10/Materials | Discovered new exit (range 4) 136 | -10/Materials | Entered another Materials area 136 | -9/Materials | Evolved 2 slots: Power x1, Weapon x1 496 | -9/Materials | Discovered new exit (range 5) 517 | -9/Materials | Entered another Materials area 517 | -8/Materials | Evolved 2 slots: Propulsion x1, Utility x1 789 | -8/Materials | Build established: Scavenger-Tank 1375 | -8/Materials | Build established: Tank 1395 | -8/Materials | Core integrity fell below 50% 1643 | -8/Materials | Core integrity fell below 20% 1662 | -8/Materials | Destroyed by G-47 Trooper with Particle Gun Last Messages --------------- R-06 Scavenger collects Wheel. Power failure, Lgt. Nuclear Core shutdown. Overheating: System interference. Particle Gun temporarily disabled. K-01 Serf collects debris. Overheating: Core damaged (-66). U-05 Engineer builds a Wall. Overheating: Enh. Autogun damaged (-48). Overheating: Broken Com. Wheel damaged (-18). Acquired Wheel. Critical hit (Burn: +37). Extracted 100 matter. R-06 Scavenger collects Lgt. Ion Engine. Power failure, Lgt. Nuclear Core shutdown. Slammed into U-05 Engineer. K-01 Serf collects debris. Wheel broken. Overheating: Short circuit. Wheel broken. Overheating: Short circuit. Map ----- +----------------------------------------------------+ | ???????????????????????????????????????????????? | | ???????????????????????????????????????????????? | | ???????????????????????????????????????????????? | | ???????????????????????????????????????????????? | | ???????????????????????????????????????????????? | | ????????????????????????? ?????????????????????? | | ??????????????????????? ?????????????????????? | | ??????????????????????? ######???????????????? | | ???????????????????????? #???????????????? | | ???????????????????????? #???????????????? | | ????????????????????????? #???????????????? | | ????????????????????????? #???????????????? | | ?????????????????????????? #???????????????? | | ?????????????????????????? #???????????????? | | ??????????????????????????? #???????????????? | | ??????????????????????????? #???????????????? | | ???????????????????????????? ????????????????? | | ???????????????????????????? * ????????????????? | | ????????????????????????????#[#????????????????? | | ????????????????????#########%#????????????????? | | ????????????????????# ##%##???????????????? | | ????????????????????#""" #==%#???????????????? | | ????????????????????#""" +! *#???????????????? | | ????????????????????#""" g#===#???????????????? | | ????????????????????# ##%##???????????????? | | ????????????????????# @ ##*#????????????????? | | ????????????????????###+##### #????????????????? | | ??????????????????????# #???# #????????????????? | | ??????????????????????# #???# #????????????????? | | ??????????????????????# ##### #####+##?????????? | | ???????????????######## ????????? | | ???????????????# ! # #??????????????? | | ???????????????# # #??????????????? | | ???????????????# """ + """ #??????????????? | | ???????????????# """ # """ #??????????????? | | ???????????????# """ #"" """ #??????????????? | | ???????????????# #"Y #??????????????? | | ???????????????########"" ############???? | | ???????????????????#### ## %*#???? | | ???????????????????# ## """""""%#???? | | ???????????????????# #### ## """""""=#???? | | ???????????????????#????# # """"""*##??? | | ????????????????????????# + """"""=##??? | | ???????????????????????## T # ! "%"%"=##??? | | ???????????????????????#T #*! % ]#???? | | ???????????????????????## # ]#???? | | ????????????????????????# #####["####???? | | ????????????????????????# #???####??????? | | ????????????????????????# ##????????????? | | ????????????????????????# ?????? | +----------------------------------------------------+ Best States ------------- Heat Dissipation 45 Energy Generation 21 Energy Capacity 625 Matter Stores 300 Matter Capacity 300 Sight Range 16 Terrain Scan Density 10 Armor Coverage 300 Resistance: KI 20 Evasion (%) 44 Recoil Reduction 3 Item Schematics ----------------- None Robot Schematics ------------------ None Fabricated ------------ Nothing Repaired ---------- Nothing Alien Tech Used ----------------- None Achievements -------------- None Challenges ------------ None Game ------ Seed FactoryChargeNeutralizer Manual? 0 Play Time 00:22:19 Cumulative 4.2 hours Start 2025.10.09 @ 13:48:19 End 2025.10.09 @ 14:10:49 Sessions 1 Manual Loads 0 Difficulty Rogue Special Mode None Game No. 12 Rogue 12 Adventurer 0 Explorer 0 Win Type - Total 0 Types 0/0/0/0/0/0/0/0/0/0 Lore% 2 Gallery% 9 Achievement% 10 Wizard Run 0 Options --------- Layout 1 ASCII 0 Keyboard 0 Movement Mouse Keybinds 0 Fullscreen 1 Font 32/SmallcapsGlow Map View 50x35 Zoom Use 0% Tactical HUD 0 Map Filters NONE Filters NONE Steam 1 RUN: 3c3254cd-4a7e-4026-ab49-2990c6477591